bitfinex/quotes_SOLUSD_20250125
["timestamp","ask_amount","ask_price","bid_price","bid_amount"]
[1737784741238,4.0167,248.96,248.84,0.063]
[1737784743245,4.017,248.94,248.84,0.063]
[1737784745118,1.00396784,248.93,248.84,0.063]
[1737784746433,1.00396784,248.93,248.86,20.0]
[1737784747144,1.00396784,248.93,248.84,0.063]
[1737784747329,1.00396784,248.92,248.84,0.063]
[1737784749068,4.017,248.94,248.84,0.063]
[1737784750549,1.00394361,248.93,248.84,0.063]
[1737784751850,1.00394361,248.92,248.84,0.063]
[1737784753229,4.0167,248.96,248.84,0.063]
[1737784754629,7.9609,248.97,248.84,0.063]
[1737784754829,7.9609,248.97,248.84,50.063]
[1737784755049,1.00394276,248.95,248.84,50.063]
[1737784756852,1.00394276,248.94,248.84,50.063]
[1737784758153,1.00394276,248.93,248.84,50.063]
[1737784760055,1.00394276,248.92,248.84,50.063]
[1737784760654,2.0,248.8,248.79,1.64632743]
[1737784760834,1.0,248.74,248.56,30.0]
[1737784761031,2.0,248.74,248.56,30.0]
[1737784761434,2.0,248.74,248.58,1.64212288]
[1737784761956,1.0,248.74,248.63,3.1]
[1737784762345,2.0,248.74,248.63,3.1]
[1737784763271,6.0202,248.74,248.63,3.1]
[1737784764073,6.0202,248.74,248.63,3.08]
[1737784765572,6.0202,248.74,248.63,23.08]
[1737784766263,2.0,248.74,248.63,23.08]
[1737784766569,1.0,248.74,248.63,23.08]
[1737784768966,1.0,248.74,248.64,4.0218]
[1737784775870,1.0,248.76,248.67,20.0]
[1737784777778,1.0,248.76,248.68,4.0212]
[1737784778374,1.0,248.78,248.68,4.0212]
[1737784779261,8.9299,248.8,248.68,24.0212]
[1737784779662,7.9299,248.8,248.68,24.0212]
[1737784780979,7.9299,248.8,248.68,34.0742]
[1737784781982,8.9299,248.8,248.68,34.0742]
[1737784782574,7.9299,248.8,248.68,21.64912234]
[1737784782776,7.9299,248.8,248.73,20.0]
[1737784785177,7.9299,248.8,248.74,4.0202]
[1737784785582,2.0,248.64,248.63,0.063]
[1737784786599,1.0,248.64,248.63,0.063]
[1737784786763,2.0,248.64,248.63,0.063]
[1737784787885,1.0,248.64,248.63,0.063]
[1737784788374,2.0,248.64,248.63,0.063]
[1737784788773,1.0,248.64,248.63,0.063]
[1737784789681,2.0,248.64,248.63,0.063]
[1737784792883,10.2379,248.66,248.63,0.063]
[1737784793984,1.0,248.64,248.63,0.063]
[1737784794382,10.2379,248.66,248.63,0.063]
[1737784794890,2.0,248.64,248.63,0.063]
[1737784795986,1.0,248.64,248.63,0.063]
[1737784796291,2.0,248.64,248.63,0.063]
[1737784800205,1.0,248.64,248.63,4.085]
[1737784800375,10.2379,248.66,248.63,4.085]
[1737784800870,2.0,248.64,248.63,0.063]
[1737784801070,0.39643941,248.73,248.43,34.0228]
[1737784801071,7.5629,248.49,248.43,34.0228]
[1737784801305,1.0,248.47,248.43,4.0228]
[1737784801471,2.0,248.47,248.43,4.0228]
[1737784801671,1.0,248.47,248.43,4.0228]
[1737784802302,2.0,248.47,248.43,4.0228]
[1737784802780,1.0,248.47,248.43,4.0228]
[1737784803397,7.5629,248.49,248.43,8.048]
[1737784803594,6.6156,248.49,248.43,8.048]
[1737784803782,1.0,248.64,248.51,20.0]
[1737784803978,1.0,248.64,248.52,3.12]
[1737784804494,1.0,248.64,248.53,4.0236]
[1737784804886,1.0,248.61,248.53,4.0236]
[1737784805369,1.0,248.58,248.53,4.0236]
[1737784805968,1.0,248.56,248.53,4.0236]
[1737784806194,1.0,248.71,248.39,4.0259]
[1737784806195,1.0,248.48,248.39,4.0259]
[1737784806403,1.0,248.49,248.39,4.0259]
[1737784808076,1.0,248.51,248.4,3.14]
[1737784808290,1.0,248.51,248.41,3.14]
[1737784809503,1.0,248.51,248.39,14.0907]
[1737784809698,1.0,248.5,248.39,7.1659]
[1737784809878,1.0,248.5,248.39,4.0259]
[1737784810196,1.0,248.5,248.39,7.1659]
[1737784810376,1.0,248.48,248.39,4.0259]
[1737784810582,1.0,248.5,248.39,7.1659]
[1737784811999,1.0,248.48,248.39,7.1659]
[1737784812685,1.0,248.5,248.39,7.1659]
[1737784813005,1.0,248.5,248.39,17.2307]
[1737784813500,1.0,248.5,248.41,0.063]
[1737784813906,1.0,248.5,248.42,4.0254]
[1737784814605,1.0,248.52,248.42,24.0254]
[1737784814801,1.0,248.54,248.42,34.089]
[1737784815101,8.1629,248.55,248.42,34.089]
[1737784817407,6.6156,248.55,248.47,20.0]
[1737784817600,8.0074,248.61,248.49,20.0]
[1737784817904,1.0,248.59,248.49,20.0]
[1737784818114,8.0074,248.61,248.49,20.0]
[1737784818603,6.3903,248.61,248.49,20.0]
[1737784819688,6.3903,248.61,248.52,20.0]
[1737784819885,8.0597,248.67,248.53,3.1]
[1737784820089,1.0,248.66,248.53,3.1]
[1737784820586,1.0,248.66,248.55,20.0]
[1737784820800,8.0597,248.67,248.55,20.0]
[1737784821100,1.0,248.66,248.55,20.0]
[1737784821506,1.0,248.64,248.55,20.0]
[1737784821683,1.0,248.64,248.56,4.0231]
[1737784822207,1.0,248.65,248.56,4.0231]
[1737784823010,9.0597,248.67,248.56,14.081]
[1737784825713,1.0,248.64,248.56,14.081]
[1737784826410,1.0,248.65,248.56,14.081]
[1737784827587,9.0597,248.67,248.56,14.081]
[1737784828008,1.0,248.64,248.56,14.081]
[1737784828200,9.0597,248.67,248.56,14.081]
[1737784830019,1.0,248.64,248.56,14.081]
[1737784830221,1.0,248.61,248.56,4.0231]
[1737784831523,8.0597,248.67,248.59,20.0]
[1737784832228,8.0597,248.67,248.6,14.0788]
[1737784832539,8.0597,248.73,248.63,20.0]
[1737784833829,8.0597,248.73,248.67,20.0]
[1737784834036,9.1511,248.79,248.68,3.04]
[1737784835137,8.1511,248.79,248.69,20.0]
[1737784835336,6.4993,248.79,248.69,20.0]
[1737784835503,1.0,248.84,248.7,50.0]
[1737784835702,8.1511,248.85,248.74,20.0]
[1737784835899,8.1511,248.85,248.75,4.0201]
[1737784836634,1.0,248.84,248.75,4.0201]
[1737784836823,8.1511,248.85,248.75,4.0201]
[1737784836824,1.0,248.79,248.75,4.0201]
[1737784837029,1.0,248.77,248.69,4.021]
[1737784837236,8.1511,248.85,248.69,4.021]
[1737784837237,1.0,248.79,248.7,20.0]
[1737784838036,1.0,248.79,248.71,24.0207]
[1737784839158,1.0,248.76,248.71,4.0207]
[1737784842442,1.0,248.8,248.71,4.0207]
[1737784843432,1.0,248.83,248.71,37.849384]
[1737784843645,1.0,248.83,248.74,20.0]
[1737784843834,8.1511,248.85,248.74,20.0]
[1737784844325,1.0,248.88,248.74,20.0]
[1737784844530,1.0,248.88,248.78,20.0]
[1737784844926,7.3816,248.9,248.78,20.0]
[1737784846667,7.3816,248.9,248.78,30.0487]
[1737784847058,1.03,248.92,248.82,20.0]
[1737784847273,0.03,248.92,248.83,23.0]
[1737784847754,0.03,248.92,248.87,20.0]
[1737784848729,0.03,248.92,248.88,4.018]
[1737784848921,0.03,248.92,248.91,20.0]
[1737784849136,0.03,248.92,248.84,4.0185]
[1737784849137,1.03,248.92,248.84,4.0185]
[1737784849834,0.03,248.92,248.87,20.0]
[1737784850324,1.03,248.92,248.87,20.0]
[1737784852459,1.03,248.92,248.88,2.98]
[1737784852629,1.0,248.89,248.85,2.98]
[1737784852830,1.03,248.92,248.85,2.98]
[1737784853061,1.0,248.89,248.85,2.98]
[1737784853259,0.03,248.92,248.89,20.0]
[1737784853429,0.03,248.92,248.89,43.776884]
[1737784853635,6.4116,249.01,248.91,20.0]
[1737784853967,0.03,249.01,248.95,20.0]
[1737784857242,1.0,248.97,248.95,2.98]
[1737784858370,1.0,248.91,248.87,2.98]
[1737784860453,1.0,248.89,248.87,2.98]
[1737784860646,4.0168,248.95,248.87,2.98]
[1737784860647,1.0,248.91,248.87,2.98]
[1737784862271,1.0,248.89,248.87,2.98]
[1737784862469,1.0,248.91,248.87,2.98]
[1737784863176,1.0,248.94,248.87,2.98]
[1737784863376,1.0,248.92,248.87,2.98]
[1737784866094,1.0,248.94,248.87,2.98]
[1737784866581,1.0,248.94,248.87,6.998]
[1737784867080,1.0,248.94,248.87,7.061]
[1737784867260,0.03,248.92,248.87,7.061]
[1737784869200,1.03,248.92,248.87,7.061]
[1737784871082,1.03,248.92,248.87,4.081]
[1737784871286,1.03,248.92,248.89,20.0]
[1737784871471,1.0,248.91,248.89,20.0]
[1737784871676,1.0,248.91,248.88,4.0179]
[1737784871999,1.03,248.92,248.89,20.0]
[1737784872364,0.03,248.92,248.88,4.0178]
[1737784872589,1.03,248.92,248.88,4.0178]
[1737784873283,0.03,248.92,248.88,4.0178]
[1737784877592,1.0,248.91,248.88,24.0178]
[1737784878077,0.03,248.92,248.88,24.0178]
[1737784878469,0.03,248.92,248.89,20.0]
[1737784878673,0.03,249.01,248.93,20.0]
[1737784879479,1.0,249.0,248.93,20.0]
[1737784879680,1.0,248.98,248.94,4.017]
[1737784880271,1.0,248.98,248.91,20.0]
[1737784880479,1.0,248.94,248.89,4.0178]
[1737784881597,1.0,248.91,248.88,2.9]
[1737784882283,1.0,248.91,248.88,6.9179]
[1737784882494,1.0,248.94,248.88,6.9179]
[1737784883276,1.0,248.92,248.88,6.9179]
[1737784883476,1.0,248.92,248.88,6.9809]
[1737784883682,1.03,248.94,248.88,6.9809]
[1737784885299,1.03,248.94,248.9,20.0]
[1737784885300,1.0,248.91,248.9,20.0]
[1737784885478,1.0,248.91,248.9,4.0176]
[1737784886998,1.0,248.93,248.9,4.0176]
[1737784887489,0.03,248.94,248.9,4.0176]
[1737784888092,0.03,248.94,248.92,20.0]
[1737784889600,0.03,248.94,248.93,4.0171]
[1737784893497,1.03,249.01,248.96,20.0]
[1737784893700,0.03,249.01,248.96,20.0]
[1737784894079,1.0,248.97,248.93,4.0171]
[1737784894280,1.0,248.91,248.88,0.063]
[1737784894511,1.0,248.89,248.88,0.063]
[1737784896782,1.0,248.92,248.88,0.063]
[1737784897797,1.0,248.92,248.89,4.0178]
[1737784898198,1.0,248.95,248.89,4.0178]
[1737784898703,1.0,248.92,248.89,4.0178]
[1737784898903,1.0,248.94,248.89,4.0178]
[1737784899905,1.0,248.94,248.88,0.063]
[1737784900076,1.0,248.89,248.88,0.063]
[1737784900276,9.0239,248.89,248.88,0.063]
[1737784900496,9.0239,248.89,248.87,0.063]
[1737784902679,13.0417,248.89,248.87,0.063]
[1737784902879,1.0,248.74,248.7,2.88]
[1737784903092,1.0,248.81,248.72,20.0]
[1737784903724,1.0,248.81,248.73,20.0]
[1737784904023,1.0,248.81,248.73,24.0204]
[1737784906423,1.0,248.83,248.73,24.0204]
[1737784907824,1.0,248.83,248.73,34.1344]
[1737784908024,12.0417,248.89,248.73,34.1344]
[1737784908025,1.0,248.85,248.77,20.0]
[1737784908532,1.0,248.85,248.78,4.0196]
[1737784908938,1.0,248.87,248.78,4.0196]
[1737784909248,9.0239,248.89,248.8,23.776884]
[1737784909394,1.0,248.92,248.83,20.0]
[1737784909791,1.0,248.92,248.84,2.86]
[1737784911037,1.0,248.92,248.85,4.0184]
[1737784911206,1.0,248.89,248.85,4.0184]
[1737784911612,1.0,248.91,248.85,4.0184]
[1737784913346,0.03,248.94,248.85,24.0184]
[1737784913512,0.03,248.94,248.85,34.0646]
[1737784914622,0.03,248.94,248.9,20.0]
[1737784915834,0.03,248.94,248.91,4.0175]
[1737784916012,0.03,248.94,248.91,24.0175]
[1737784918832,0.03,248.94,248.92,23.776884]
[1737784920137,7.325,249.01,248.96,20.0]
[1737784920433,0.03,249.01,248.96,20.0]
[1737784920922,0.03,249.01,248.98,20.0]
[1737784921121,0.03,249.01,248.99,22.84]
[1737784922329,0.03,249.01,249.0,4.016]
[1737784925543,1.0,249.11,249.01,23.776884]
[1737784925720,1.0,249.11,249.04,20.0]
[1737784926037,1.0,249.12,249.04,20.0]
[1737784926431,1.0,249.14,249.05,20.0]
[1737784927651,7.8419,249.16,249.09,20.0]
[1737784928236,0.03,249.16,249.09,20.0]
[1737784929849,0.03,249.16,249.1,4.0144]
[1737784930746,0.03,249.16,249.13,20.0]
[1737784930947,7.8119,249.15,249.08,30.0]
[1737784931139,1.0,248.97,248.94,1.63309176]
[1737784931665,1.0,248.97,248.89,4.0177]
[1737784931829,1.0,248.97,248.85,1.6602]
[1737784931830,1.0,248.97,248.86,4.0183]
[1737784932141,1.0,248.94,248.86,4.0183]
[1737784932343,1.0,248.96,248.86,4.0183]
[1737784932550,1.0,248.96,248.87,3.08]
[1737784932855,1.0,249.0,248.89,20.0]
[1737784933034,7.8119,249.02,248.92,20.0]
[1737784933243,1.0,248.98,248.92,20.0]
[1737784933442,1.0,248.95,248.88,4.018]
[1737784933757,1.0,248.98,248.92,20.0]
[1737784933953,1.0,249.0,248.89,23.776884]
[1737784934553,1.0,249.0,248.92,20.0]
[1737784934941,1.0,249.0,248.91,20.0]
[1737784935750,1.0,249.0,248.92,0.063]
[1737784935951,8.8419,249.02,248.92,0.063]
[1737784937349,8.8419,249.02,248.93,4.0171]
[1737784937553,1.0,248.97,248.93,4.0171]
[1737784938643,1.0,248.97,248.92,0.063]
[1737784938843,1.0,248.97,248.92,4.0802]
[1737784940354,1.0,248.93,248.92,0.063]
[1737784940868,1.0,248.96,248.92,4.0802]
[1737784941050,1.0,248.98,248.92,4.0802]
[1737784943238,1.0,248.96,248.92,4.0802]
[1737784943439,1.0,248.99,248.92,14.1235]
[1737784943765,1.0,249.0,248.92,96.0235]
[1737784944139,1.0,249.0,248.95,20.0]
[1737784944566,6.325,249.02,248.95,20.0]
[1737784944771,6.325,249.02,248.99,20.0]
[1737784945139,0.03,249.02,248.99,101.9]
[1737784945454,0.0001,249.02,248.99,101.9]
[1737784946765,0.0001,249.02,249.0,4.016]
[1737784948846,0.0001,249.02,249.01,23.776884]
[1737784949044,1.5667,249.14,249.04,20.0]
[1737784949342,1.5667,249.14,249.08,20.0]
[1737784950167,6.5615,249.15,249.08,20.0]
[1737784950344,6.5615,249.15,249.09,4.0146]
[1737784952369,1.0,249.12,249.07,24.0148]
[1737784952861,1.0,249.11,249.07,24.0148]
[1737784954572,6.5615,249.15,249.07,24.0148]
[1737784954573,1.0,249.14,249.07,24.0148]
[1737784954782,1.0,249.1,249.07,24.0148]
[1737784955862,1.0,249.14,249.07,24.0148]
[1737784956061,1.0,249.1,249.07,24.0148]
[1737784957063,1.0,249.08,249.07,4.0148]
[1737784958545,1.0,249.08,249.07,24.0148]
[1737784958873,1.0,249.1,249.07,24.0148]
[1737784964075,7.5615,249.15,249.07,34.0521]
[1737784964274,0.03,249.16,249.07,115.9521]
[1737784965481,1.0,249.15,249.07,115.9521]
[1737784966361,1.0,249.15,249.07,117.5921]
[1737784968870,0.03,249.16,249.07,117.5921]
[1737784969074,0.03,249.16,249.11,20.0]
[1737784970455,0.03,249.16,249.12,4.0141]
[1737784970654,0.03,249.16,249.15,20.0]
[1737784972179,0.03,249.16,249.15,24.0136]
[1737784974977,0.03,249.17,249.15,24.0136]
[1737784975165,0.03,249.19,249.15,108.9136]
[1737784975473,1.03,249.26,249.19,20.0]
[1737784975881,1.0,249.21,249.19,20.0]
[1737784977889,1.0,249.2,249.19,20.0]
[1737784981764,1.0,249.18,249.16,81.9]
[1737784986089,1.0,249.18,249.14,20.0]
[1737784986976,1.0,249.18,249.16,0.063]
[1737784990098,0.03,249.19,249.16,0.063]
[1737784990298,1.0,249.17,249.16,0.063]
[1737784993692,1.03,249.19,249.16,0.063]
[1737784994491,0.03,249.19,249.16,4.0764]
[1737784994684,0.03,249.19,249.18,4.0131]
[1737784996099,0.03,249.22,249.2,20.0]
[1737784996271,0.03,249.22,249.2,101.9]
[1737784997085,0.03,249.22,249.21,4.0126]
[1737784997689,0.03,249.22,249.2,101.9]
[1737784997895,1.0,249.21,249.2,101.9]
[1737784999399,0.03,249.22,249.2,101.9]
[1737785001497,1.03,249.22,249.2,101.9]
[1737785001798,0.03,249.22,249.2,101.9]
[1737785002298,1.03,249.22,249.2,101.9]
[1737785003099,0.03,249.22,249.2,101.9]
[1737785004381,1.0,249.21,249.2,101.9]
[1737785004579,1.0,249.2,249.17,2.92]
[1737785005078,0.03,249.22,249.17,2.92]
[1737785005395,1.0,249.2,249.17,2.92]
[1737785005602,1.0,249.2,249.19,20.0]
[1737785008909,0.03,249.22,249.2,20.0]
[1737785009913,0.03,249.22,249.2,101.9]
[1737785012498,0.03,249.22,249.2,105.9127]
[1737785013713,1.0,249.21,249.2,105.9127]
[1737785013892,1.0,249.21,249.2,101.9]
[1737785014907,0.03,249.22,249.2,101.9]
[1737785018100,0.03,249.22,249.2,105.9128]
[1737785021722,1.03,249.22,249.2,105.9128]
[1737785022123,0.03,249.22,249.2,105.9128]
[1737785027732,1.0,249.21,249.2,105.9128]
[1737785028329,1.0,249.21,249.2,101.9]
[1737785031726,1.0,249.21,248.94,0.063]
[1737785031927,30.985684,249.07,249.06,5.13637909]
[1737785032126,7.2088,249.07,249.06,3.53192309]
[1737785034209,7.2088,249.07,248.99,37.68427159]
[1737785034406,1.0,249.09,248.98,20.0]
[1737785034611,1.0,249.09,249.02,24.0787]
[1737785035125,1.0,249.03,249.02,0.063]
[1737785038129,8.5928,249.03,249.02,0.063]
[1737785039025,8.5928,249.03,248.75,1.0]
[1737785039026,52.138084,248.92,248.84,16.06139]
[1737785039226,53.53452341,248.92,248.91,0.0001]
[1737785040033,1.0,248.78,248.73,4.0833]
[1737785040203,1.0,248.78,248.73,0.063]
[1737785042939,1.0,248.78,248.73,24.0833]
[1737785043435,1.0,248.8,248.77,4.0826]
[1737785043738,1.0,248.78,248.77,4.0826]
[1737785044631,1.0,248.8,248.77,4.0826]
[1737785045031,1.0,248.83,248.77,4.0826]
[1737785045210,1.0,248.85,248.77,4.0826]
[1737785045610,1.0,248.82,248.77,4.0826]
[1737785046132,1.0,248.82,248.81,20.0]
[1737785046439,1.0,248.86,248.81,20.0]
[1737785046937,1.0,248.86,248.82,20.0]
[1737785047128,1.0,248.84,248.82,20.0]
[1737785047439,1.0,248.86,248.82,20.0]
[1737785047735,1.0,248.84,248.82,20.0]
[1737785048239,1.0,248.84,248.83,4.0188]
[1737785049217,1.0,248.88,248.83,4.0188]
[1737785051234,1.0,248.9,248.86,20.0]
[1737785051444,0.03,248.91,248.86,20.0]
[1737785053740,0.03,248.91,248.87,4.0181]
[1737785053942,0.03,248.91,248.9,20.0]
[1737785054139,1.0,248.97,248.9,43.776884]
[1737785055555,1.0,248.97,248.94,20.0]
[1737785055854,1.0,248.97,248.95,2.96]
[1737785056743,1.0,248.97,248.95,4.52]
[1737785057335,1.0,248.97,248.96,4.0167]
[1737785057543,1.0,248.97,248.96,5.5767]
[1737785060233,1.0,248.97,248.96,1.56]
[1737785060547,1.0,248.97,248.96,4.52]
[1737785065246,1.0,248.97,248.96,1.56]
[1737785065438,1.0,248.97,248.91,84.903]
[1737785065747,1.0,248.93,248.92,0.08]
[1737785074063,1.0,248.95,248.93,4.0171]
[1737785074240,1.0,248.97,248.93,4.0171]
[1737785074835,1.0,248.97,248.94,1.49]
[1737785075564,1.0,248.95,248.94,1.49]
[1737785080170,1.0,248.93,248.92,81.9]
[1737785080376,1.0,248.93,248.92,83.39]
[1737785081158,1.0,248.93,248.92,1.49]
[1737785086561,1.0,248.93,248.91,0.063]
[1737785087469,1.03,248.93,248.91,0.063]
[1737785089257,1.03,248.93,248.92,4.0173]
[1737785089466,0.03,248.93,248.92,4.0173]
[1737785090582,0.03,248.93,248.92,4.1573]
[1737785091457,1.0,248.99,248.95,20.0]
[1737785091649,1.0,248.97,248.95,20.14]
[1737785092465,1.0,248.97,248.96,4.0167]
[1737785093168,1.0,248.97,248.96,4.1567]
[1737785094267,1.0,248.99,248.96,4.1567]
[1737785097064,1.0,249.01,248.96,4.1567]
[1737785098070,1.0,248.99,248.96,4.1567]
[1737785099392,1.0,249.04,248.99,20.0]
[1737785099558,1.0,249.04,248.99,103.33]
[1737785099868,1.0,249.06,248.99,103.33]
[1737785102370,1.0,249.01,249.0,4.016]
[1737785102551,1.0,249.01,249.0,5.446]
[1737785102873,1.0,249.1,249.04,20.0]
[1737785103055,1.0,249.1,249.06,20.0]
[1737785103471,1.0,249.1,249.06,21.43]
[1737785103671,1.0,249.08,249.06,1.43]
[1737785104778,6.0181,249.07,249.06,1.43]
[1737785106260,6.0181,249.07,249.02,2.88]
[1737785106462,1.0,249.03,249.02,2.88]
[1737785110256,1.0,248.97,248.96,20.0]
[1737785112380,1.0,248.95,248.91,2.943]
[1737785112562,1.0,248.95,248.94,20.0]
[1737785114759,1.0,248.93,248.91,4.0804]
[1737785116067,1.0,248.93,248.91,0.063]
[1737785116663,2.0,248.74,248.71,6.3018]
[1737785116869,2.0,248.74,248.59,81.9]
[1737785117168,2.0,248.74,248.65,3.51563216]
[1737785117880,2.0,248.7,248.65,3.51563216]
[1737785118471,25.776884,248.7,248.65,3.51563216]
[1737785118768,25.776884,248.7,248.56,4.023]
[1737785119167,2.0,248.67,248.54,7.0034]
[1737785119584,2.0,248.67,248.54,22.98]
[1737785119886,2.0,248.67,248.59,4.0225]
[1737785122685,2.0,248.67,248.6,4.0224]
[1737785122988,2.0,248.67,248.58,20.0]
[1737785123167,2.0,248.67,248.63,4.0219]
[1737785126990,2.0,248.67,248.61,4.0222]
[1737785127684,8.1958,248.49,248.32,20.1348]
[1737785128183,8.1958,248.49,248.33,23.776884]
[1737785128575,8.1958,248.49,248.35,23.776884]
[1737785128884,8.1958,248.49,248.42,4.0253]
[1737785130387,31.972684,248.49,248.38,2.98]
[1737785130688,1.0,248.38,248.37,4.0261]
[1737785130989,1.0,248.38,248.34,2.98]
[1737785131183,1.0,248.38,248.35,4.0265]
[1737785131488,1.0,248.36,248.35,4.0265]
[1737785131789,1.0,248.45,248.38,20.0]
[1737785132000,1.0,248.43,248.38,20.0]
[1737785132478,6.1958,248.49,248.38,20.0]
[1737785132479,1.0,248.45,248.38,20.0]
[1737785132680,1.0,248.41,248.38,20.0]
[1737785132874,1.0,248.39,248.35,14.0929]
[1737785133093,1.0,248.37,248.36,2.98]
[1737785133691,1.0,248.38,248.36,2.98]
[1737785134076,1.0,248.37,248.36,2.98]
[1737785134279,1.0,248.36,248.33,20.0]
[1737785134471,1.0,248.36,248.34,2.98]
[1737785134887,1.0,248.38,248.37,20.0]
[1737785137404,1.0,248.38,248.37,24.0892]
[1737785139201,1.0,248.41,248.37,24.0892]
[1737785139787,1.0,248.39,248.37,34.1548]
[1737785139989,1.0,248.41,248.37,34.1548]
[1737785140383,1.0,248.43,248.37,34.1548]
[1737785140583,1.0,248.45,248.38,23.776884]
[1737785140785,1.0,248.48,248.38,23.776884]
[1737785141005,6.1958,248.49,248.38,23.776884]
[1737785141375,1.0,248.48,248.38,23.776884]
[1737785141778,6.1958,248.49,248.42,20.0]
[1737785141976,1.0,248.5,248.42,20.0]
[1737785142508,1.0,248.47,248.42,20.0]
[1737785143419,1.0,248.47,248.43,4.0252]
[1737785144005,1.0,248.49,248.43,4.0252]
[1737785144202,1.0,248.49,248.43,14.0883]
[1737785144909,1.0,248.49,248.46,20.0]
[1737785145492,1.0,248.49,248.46,24.0247]
[1737785145694,1.0,248.51,248.46,14.0866]
[1737785146524,1.0,248.54,248.47,20.0]
[1737785146828,1.0,248.54,248.48,2.94]
[1737785147398,1.0,248.49,248.48,2.94]
[1737785147625,1.0,248.49,248.48,6.9644]
[1737785148228,1.0,248.52,248.48,6.9644]
[1737785150421,1.0,248.56,248.48,6.9644]
[1737785150715,0.03,248.54,248.48,17.0255]
[1737785151529,1.03,248.54,248.48,17.0255]
[1737785152004,0.03,248.54,248.48,17.0255]
[1737785154123,1.03,248.54,248.48,17.0255]
[1737785154507,0.03,248.54,248.52,4.0238]
[1737785156117,1.0,248.58,248.52,4.0238]
[1737785156304,1.0,248.58,248.53,20.0]
[1737785156611,1.0,248.58,248.52,4.0238]
[1737785156612,1.0,248.58,248.56,4.0231]
[1737785158107,1.0,248.61,248.56,4.0231]
[1737785158732,1.0,248.61,248.53,20.0]
[1737785158936,1.0,248.63,248.59,20.0]
[1737785159116,1.0,248.6,248.59,20.0]
[1737785160425,1.0,248.6,248.59,24.0226]
[1737785161414,1.0,248.55,248.51,14.0835]
[1737785161702,1.0,248.55,248.52,2.9]
[1737785162615,1.0,248.55,248.54,20.0]
[1737785163122,1.0,248.55,248.53,4.0236]
[1737785168841,1.0,248.59,248.56,20.0]
[1737785169135,1.0,248.61,248.56,20.0]